Cogmind - Beta 12 X4 *** ADVENTURER MODE // 2022.11.24 @ 08:02:04 Player: Sardaukar Result: Destroyed by G-67 Veteran with Plasma Rifle Performance ------------- Evolutions (7) 3500 Regions Visited (10) 2000 Robots Destroyed (142) 710 Value Destroyed (5621) 5621 Prototype IDs (9) 180 Alien Tech Used (0) 0 Bonus (953) 953 TOTAL SCORE: 12964 Bonus ------- High Alert Combat Kills 123 Follower Combat Kills 367 Entered Garrisons 200 Used RIF Installer 500 Friendly Fire -237 Cogmind --------- Core Integrity 0/1300 Matter 155/300 Energy 100/100 System Corruption 0% Temperature Cool (49) Movement Core (50) Location -3/Research Parts ------- > --- POWER (1) -------- (None) > --- PROPULSION (5) --- (None) > --- UTILITY (12) ----- (None) > --- WEAPON (3) ------- (None) > --- INVENTORY (5) ---- Improved Heat Sink Dispersion Rifle Dispersion Rifle Coil Gun Heavy Flail Peak State ------------ > --- POWER ------------ Micro Antimatter Reactor > --- PROPULSION ------- Improved Antigrav System Improved Antigrav System Improved Antigrav System Improved Antigrav System Backup Propulsion VII > --- UTILITY ---------- Large Storage Unit Advanced Visual Processing Unit Advanced Signal Interpreter Advanced Terrain Scan Processor Advanced Target Analyzer Improved Medium Armor Plating Hacking Suite Relay Coupler [Brawler] System Guard > --- WEAPON ----------- Power Sword Power Sword Power Sword > --- INVENTORY -------- Antimatter Reactor Backup Power VII Improved Heat Sink Advanced System Restoration Module Dispersion Rifle Dispersion Rifle Coil Gun KE Penetrator KE Penetrator Enhanced Gauss Cannon Enhanced Gauss Cannon Improved Remote Datajack Heavy Flail [Rating: 100] Favorites ----------- Power Improved Ion Engine Engine Improved Ion Engine Power Core Neutrino Core Reactor Micro Antimatter Reactor Propulsion Light Treads Treads Light Treads Leg Flexi-carbon Leg Wheel Compact Wheel Hover Unit Improved Antigrav System Utility Large Storage Unit Device Microactuators Storage Large Storage Unit Processor Advanced Terrain Scan Processor Hackware Hacking Suite Protection Reactive Plating Weapon Greatsword Energy Gun Heavy Particle Gun Ballistic Gun KE Penetrator Ballistic Cannon Enhanced Gauss Cannon Launcher Mini Grenade Launcher Special Weapon Improved Remote Datajack Slashing Weapon Greatsword Build | -11 -10 -9 -8 -7 -7 -7 -6 -5 -4 -3 ------- Run | Scr Mat Mat Mat Fac Gar Fac Fac Fac Fac Res Slots Evolved 14 | . . 2 2 2 . . 2 2 2 2 Power . | . . . . . . . . . . . Propulsion 3 | . . . . 1 . . 1 . . 1 Utility 10 | . . 2 2 1 . . 1 2 1 1 Weapon 1 | . . . . . . . . . 1 . Parts Attached 181 | 6 8 14 23 16 8 12 16 24 18 36 Power 15 | 1 . 3 1 1 . . 1 . 3 5 Engine 7 | 1 . 3 1 1 . . 1 . . . Core 3 | . . . . . . . . . 2 1 Reactor 5 | . . . . . . . . . 1 4 Propulsion 40 | 2 2 1 5 6 1 2 2 2 3 14 Treads 21 | . . . 4 6 1 2 2 1 2 3 Leg 5 | . . . . . . . . 1 . 4 Wheel 7 | 2 2 1 1 . . . . . 1 . Hover 7 | . . . . . . . . . . 7 Flight . | . . . . . . . . . . . Utility 67 | 1 1 5 12 6 2 8 8 12 5 7 Device 19 | . 1 1 5 2 . 2 2 1 . 5 Storage 4 | 1 . 1 1 . . . . . 1 . Processor 9 | . . . 2 1 . . 1 1 2 2 Hackware 5 | . . . . . . . . 4 1 . Protection 30 | . . 3 4 3 2 6 5 6 1 . Artifact . | . . . . . . . . . . . Weapon 59 | 2 5 5 5 3 5 2 5 10 7 10 Energy Gun 16 | 2 4 1 3 2 1 . . 1 . 2 Energy Cannon . | . . . . . . . . . . . Ballistic Gun 18 | . . 4 2 . . 2 . 3 5 2 Ballistic Cannon 4 | . . . . . . . . . 2 2 Launcher 7 | . 1 . . . 2 . 2 2 . . Special Weapon 2 | . . . . . . . . 2 . . Impact Weapon . | . . . . . . . . . . . Slashing Weapon 12 | . . . . 1 2 . 3 2 . 4 Piercing Weapon . | . . . . . . . . . . . Special Melee Weapon . | . . . . . . . . . . . Unidentified Prototypes 5 | . . 1 2 1 . . . 1 . . Corrupted Parts 1 | . . . 1 . . . . . . . System Corruption 6 | . . . 6 . . . . . . . Parts Lost 59 | . 3 4 2 3 2 2 . 18 1 24 Power 8 | . 1 2 . 1 . . . 1 . 3 Propulsion 19 | . 2 . 1 1 . 1 . 5 . 9 Utility 21 | . . . 1 1 2 1 . 10 . 6 Weapon 11 | . . 2 . . . . . 2 1 6 Highest Loss Streak 10 | . 3 3 1 2 1 1 . 10 1 7 To Critical Strikes 4 | . . . . . . 1 . 3 . . Average Slot Usage (%) 87 | . 95 93 95 96 91 94 84 81 74 78 Engine 5 | . 13 9 9 7 7 7 6 3 . . Treads 14 | . . . 9 23 23 23 21 13 6 7 Wheel 3 | . 27 21 4 . . . . . 2 2 Device 10 | . 11 22 12 21 7 8 13 8 . 3 Storage 7 | . 14 11 9 7 7 7 6 5 7 6 Processor 11 | . . . 8 10 12 7 9 16 17 20 Hackware 3 | . . . . . . . . 8 15 10 Protection 13 | . . 8 23 12 24 28 18 11 2 2 Energy Gun 3 | . 27 3 9 8 . . . . . . Ballistic Gun 4 | . . 18 8 . . 4 2 3 9 5 Slashing Weapon 2 | . . . . 3 6 4 4 2 . 3 Naked Turns 58 | . . . . . . . . . . 58 Heaviest Build 73 | 13 16 33 62 62 72 73 67 57 63 65 Greatest Support 92 | 26 32 32 40 84 84 76 88 91 46 92 Greatest Overweight (x) 21 | . . 1 3 . . 1 . 10 15 21 Average Overweight (x) . | . . . 1 . . . . . 3 . Largest Inventory Capacity 15 | 8 8 10 15 15 15 15 15 15 15 15 Average Capacity 13 | 6 8 9 11 15 15 15 15 15 15 14 Most Carried 15 | . 6 9 15 15 15 15 15 15 10 15 Average Carried 11 | . 3 5 9 12 13 14 14 12 6 10 Final Capacity 15 | 8 8 10 15 15 15 15 15 15 15 5 Final Carried 15 | . 3 9 15 12 14 15 15 7 10 5 Class Distribution -------------------- 27% | Gladiator 25% | Scavenger-Mutant 14% | Mutant 13% | Scavenger-Tank 5% | Hacker-Mutant 3% | Hacker-Gladiator 3% | Scavenger-Gladiator Dominant Class ---------------- Mutant | -10/Materials Scavenger-Mutant | -9/Materials Scavenger-Mutant | -8/Materials Scavenger-Mutant | -7/Factory Gladiator | -7/Garrison Gladiator | -7/Factory Gladiator | -6/Factory Scavenger-Mutant | -5/Factory Scavenger-Tank | -4/Factory Scavenger-Tank | -3/Research Resources | -11 -10 -9 -8 -7 -7 -7 -6 -5 -4 -3 ----------- Run | Scr Mat Mat Mat Fac Gar Fac Fac Fac Fac Res Matter Collected 3276 | 178 146 233 444 155 109 293 184 513 288 733 Remotely . | . . . . . . . . . . . Salvage Created 5753 | . 322 464 816 673 858 300 477 511 325 1007 Parts 328 | . 30 38 50 25 44 25 23 32 16 45 Haulers Intercepted 8 | . 1 1 3 1 . 1 1 . . . Recyclers Shooed 2 | . . . . . . 1 . . . 1 Parts Field Recycled . | . . . . . . . . . . . Retrieved Matter . | . . . . . . . . . . . Parts Self-Destructed . | . . . . . . . . . . . Prevented . | . . . . . . . . . . . Kills | -11 -10 -9 -8 -7 -7 -7 -6 -5 -4 -3 ------- Run | Scr Mat Mat Mat Fac Gar Fac Fac Fac Fac Res Combat Hostiles Destroyed 104 | . 13 8 11 12 20 2 12 8 4 14 Melee 28 | . . . . 5 13 . 3 3 . 4 Guns 42 | . 7 8 10 5 . 2 2 1 3 4 Cannons 7 | . . . . . . . . . 1 6 AOE 23 | . 5 . . . 7 . 7 4 . . Classes Destroyed 15 | . 5 4 2 1 2 . . 1 . . Worker 7 | . . . 3 . . 4 . . . . Builder 6 | . 2 1 1 . . 1 . . 1 . Tunneler 4 | . 1 1 . . . 1 . 1 . . Hauler 8 | . 1 1 3 1 . 1 1 . . . Recycler 4 | . . 1 . 1 . . . . 1 1 Operator 2 | . . . . . . . . 2 . . Watcher 6 | . . 3 . . . 1 . . 1 1 Swarmer 31 | . 9 4 . 3 7 1 7 . . . Grunt 31 | . 4 2 5 6 3 . 2 . . 9 Brawler 1 | . . . . . 1 . . . . . Duelist 3 | . . 1 . . 1 . . . . 1 Sentry 16 | . . 1 4 2 1 . 3 2 2 1 Specialist 2 | . . . . . 2 . . . . . Hunter 5 | . . . 2 . . . . 3 . . Programmer 15 | . . . . 1 5 1 . 3 2 3 Infiltrator 1 | . . . . . . 1 . . . . Best Kill Streak 8 | . 8 5 3 6 7 4 4 4 3 4 Combat Bots Only 7 | . 6 3 3 4 7 1 4 4 2 4 Max Kills in Single Turn 3 | . 3 1 2 1 3 2 3 2 1 1 Gunslinging . | . . . . . . . . . . . Exploded 3 | . 2 . . . 3 . 3 1 . . Melee 1 | . . . . 1 1 . 1 1 . 1 Uniques/NPCs Destroyed . | . . . . . . . . . . . Combat | -11 -10 -9 -8 -7 -7 -7 -6 -5 -4 -3 -------- Run | Scr Mat Mat Mat Fac Gar Fac Fac Fac Fac Res Damage Taken 10722 | . 414 465 594 948 829 153 685 2582 263 3789 Core 2360 | . 97 97 73 67 69 . 48 546 51 1312 Absorbed by Shields . | . . . . . . . . . . . Redirected to Shielding 109 | . . 6 . . . . 5 98 . . Regen/Repaired (Parts) 180 | . 37 . . . . 37 106 . . . Core Remaining (%) 79 | 100 61 75 86 . . 80 94 45 95 . Volleys Fired 263 | . 32 39 44 25 4 10 14 40 14 41 Largest 3 | . 2 2 2 2 1 2 2 2 3 3 Hottest 153 | . 100 100 110 110 30 70 70 58 120 153 Shots Fired 519 | . 59 71 84 50 4 20 21 59 40 111 Gun 436 | . 56 71 84 50 . 20 14 45 26 70 Cannon 55 | . . . . . . . . . 14 41 Launcher 22 | . 3 . . . 4 . 7 8 . . Special 6 | . . . . . . . . 6 . . Kinetic 295 | . . 53 32 . . 20 14 31 40 105 Thermal 167 | . 40 18 39 50 . . . 14 . 6 Explosive 22 | . 3 . . . 4 . 7 8 . . Electromagnetic 29 | . 16 . 13 . . . . . . . Robot Hit Streak 39 | . 13 35 24 13 15 4 19 39 22 16 Robot Miss Streak 3 | . 2 1 1 2 1 2 . 1 1 3 Penetration Max 1 | . . . 1 . . 1 . . 1 1 Secondary Targets 4 | . . . . 2 . 1 . . . 1 Max Gunslinging Chain 1 | . . . . 1 . 1 . . . 1 Shots Hit Robots 506 | . 41 58 72 51 40 12 31 70 31 100 Core Hits 227 | . 23 25 28 18 24 10 17 28 17 37 Critical Kills . | . . . . . . . . . . . Critical Parts Destroyed 3 | . . . . . . 1 . . . 2 Critical Strikes 40 | . 3 . 1 4 8 1 2 6 1 14 Burn 6 | . 3 . 1 2 . . . . . . Destroy 3 | . . . . . . 1 . . . 2 Blast 9 | . . . . . . . . . 1 8 Sever 22 | . . . . 2 8 . 2 6 . 4 Melee Attacks 165 | . . . . 12 57 3 22 20 . 51 Impact . | . . . . . . . . . . . Slashing 165 | . . . . 12 57 3 22 20 . 51 Piercing . | . . . . . . . . . . . Sneak Attacks 7 | . . . . . 3 1 2 . . 1 Combat Hostiles 3 | . . . . . 3 . . . . . Follow-up Attacks 5 | . . . . . . . . . . 5 Damage Inflicted 15240 | . 873 649 1244 1373 2355 546 1867 2132 859 3342 Guns 6221 | . 523 630 1244 804 . 384 297 694 512 1133 Cannons 1180 | . . . . . . . . . 340 840 Explosions 1945 | . 350 . . . 398 . 685 512 . . Melee 5774 | . . . . 569 1957 117 885 894 . 1352 Ramming 120 | . . 19 . . . 45 . 32 7 17 Kinetic 4888 | . . 430 482 . . 384 297 503 852 1940 Thermal 2281 | . 491 200 562 804 . . . 191 . 33 Explosive 1829 | . 234 . . . 398 . 685 512 . . Electromagnetic 348 | . 148 . 200 . . . . . . . Impact . | . . . . . . . . . . . Slashing 5774 | . . . . 569 1957 117 885 894 . 1352 Piercing . | . . . . . . . . . . . Highest Corruption 6 | . 1 . 6 . 5 5 . . . . Average Corruption 4 | . 1 . 6 . 2 5 . . . . Corruption Purged . | . . . . . . . . . . . Corruption Blocked 15 | . . . . . . . . 6 1 8 Effects 68 | . 2 . 24 . 12 30 . . . . Message Errors 14 | . 1 . 5 . 2 6 . . . . Matter Fused 18 | . 1 . 6 . 3 8 . . . . Heat Flow Errors 10 | . . . 5 . 2 3 . . . . Energy Discharges 15 | . . . 5 . 2 8 . . . . Data Loss (minor) 5 | . . . . . 1 4 . . . . Data Loss (major) 3 | . . . 1 . 1 1 . . . . Misfires 1 | . . . 1 . . . . . . . Alerts 1 | . . . . . 1 . . . . . Weapon Failures 1 | . . . 1 . . . . . . . Overload Shots . | . . . . . . . . . . . Overflow Damage 423 | . 13 . . 54 50 . 125 23 . 158 Projectiles 31 | . . . . . . . . . . 31 Explosions 76 | . 13 . . . 6 . 56 1 . . Melee 316 | . . . . 54 44 . 69 22 . 127 Knockbacks 9 | . . . . . . . . . 1 8 Impact . | . . . . . . . . . . . Kinetic 8 | . . . . . . . . . 1 7 Secondary 1 | . . . . . . . . . . 1 Self-Inflicted Damage 160 | . 25 9 . . . . 66 52 . 8 Shots 5 | . 1 . . . . . 2 2 . . Rammed 11 | . . 1 . . . 2 . 3 . 5 Targets Rammed 20 | . . 1 . . . 3 . 10 1 5 Kicked 7 | . . . . . . . . 7 . . Crushed 2 | . . . . . . 1 . . 1 . Highest Temperature 393 | . 393 97 339 8 286 257 174 15 91 178 Average Temperature 95 | . 129 29 126 4 105 73 97 6 37 53 Received Heat Transfer 2638 | . 138 135 279 327 189 30 228 309 45 958 Effects 6 | . . . 6 . . . . . . . Energy Bleed 2 | . . . 2 . . . . . . . Interference 3 | . . . 3 . . . . . . . Matter Decay 1 | . . . 1 . . . . . . . Siege Activations . | . . . . . . . . . . . Robots Corrupted 1 | . . . 1 . . . . . . . Combat Hostiles 1 | . . . 1 . . . . . . . Parts Fried 2 | . . . 1 . . 1 . . . . Impact Corruptions . | . . . . . . . . . . . Robots Melted 3 | . 1 . . 2 . . . . . . Combat Hostiles 3 | . 1 . . 2 . . . . . . Parts Melted 10 | . 3 . 2 5 . . . . . . Heat Transferred 5246 | . 1361 592 1184 1665 . . . 370 . 74 Parts Sabotaged . | . . . . . . . . . . . Parts Stolen . | . . . . . . . . . . . Parts Stripped . | . . . . . . . . . . . Power Chain Reactions 1 | . 1 . . . . . . . . . Missiles Intercepted . | . . . . . . . . . . . Alert | -11 -10 -9 -8 -7 -7 -7 -6 -5 -4 -3 ------- Run | Scr Mat Mat Mat Fac Gar Fac Fac Fac Fac Res Peak Influence 736 | . 209 343 189 218 736 513 288 228 115 342 Initial 334 | . . 20 51 61 52 334 111 76 17 30 Average 153 | . 84 226 104 75 382 323 148 122 35 97 Maximum Alert Level 3 | . 1 1 . 1 3 2 1 1 . 1 Low Security (%) 72 | 100 97 30 100 92 33 6 76 92 100 80 Level 1 20 | . 2 69 . 7 20 70 23 7 . 19 Level 2 5 | . . . . . 35 22 . . . . Level 3 . | . . . . . 9 . . . . . Level 4 . | . . . . . . . . . . . Level 5 . | . . . . . . . . . . . High Security . | . . . . . . . . . . . Max Security . | . . . . . . . . . . . Squads Dispatched 29 | . 2 3 3 5 . 2 1 6 1 6 Investigation 8 | . 2 1 1 2 . 1 . . . 1 Extermination 9 | . . . . 2 . 1 1 2 1 2 Reinforcement 12 | . . 2 2 1 . . . 4 . 3 Assault . | . . . . . . . . . . . Garrison . | . . . . . . . . . . . Intercept . | . . . . . . . . . . . Searches Triggered . | . . . . . . . . . . . Construction Impeded 1 | . . . . . . . . . . 1 Haulers Reinforced 3 | . . . . 1 . . . 1 . 1 Active Scanning Responses . | . . . . . . . . . . . Cargo Convoy Interrupts . | . . . . . . . . . . . Stealth | -11 -10 -9 -8 -7 -7 -7 -6 -5 -4 -3 --------- Run | Scr Mat Mat Mat Fac Gar Fac Fac Fac Fac Res Distress Signals 1 | . . 1 . . . . . . . . Communications Jammed . | . . . . . . . . . . . Distress Signals . | . . . . . . . . . . . Times Spotted 178 | . 15 13 12 16 19 11 14 18 7 53 Peak Tracking Total 15 | . 6 9 3 5 6 4 4 4 2 15 Tactical Retreats 12 | . . 2 . . 1 . . 1 . 8 Traps | -11 -10 -9 -8 -7 -7 -7 -6 -5 -4 -3 ------- Run | Scr Mat Mat Mat Fac Gar Fac Fac Fac Fac Res Traps Triggered 6 | . 2 . . 1 . 1 . 1 . 1 Indirectly . | . . . . . . . . . . . Trap Hack Attempts . | . . . . . . . . . . . Triggered . | . . . . . . . . . . . Disarmed . | . . . . . . . . . . . Reprogrammed . | . . . . . . . . . . . Reused . | . . . . . . . . . . . Traps Extracted . | . . . . . . . . . . . Installed . | . . . . . . . . . . . Triggered . | . . . . . . . . . . . Machines | -11 -10 -9 -8 -7 -7 -7 -6 -5 -4 -3 ---------- Run | Scr Mat Mat Mat Fac Gar Fac Fac Fac Fac Res Machines Disabled 21 | . . . . . 2 9 4 3 1 2 Max in Single Turn 2 | . . . . . 1 1 2 1 1 1 Garrison Access 1 | . . . . . . . . . . 1 Garrison Relay 2 | . . . . . 2 . . . . . Machines Sabotaged . | . . . . . . . . . . . Overloaded Fab Kills . | . . . . . . . . . . . Hacking | -11 -10 -9 -8 -7 -7 -7 -6 -5 -4 -3 --------- Run | Scr Mat Mat Mat Fac Gar Fac Fac Fac Fac Res Machines Accessed 48 | . 5 3 3 7 2 8 6 6 1 7 Terminals 29 | . 3 1 3 3 2 5 5 3 1 3 Fabricators 5 | . . . . 1 . 1 . 2 . 1 Repair Stations 4 | . 1 . . 1 . 1 1 . . . Recycling Units 3 | . 1 1 . . . . . . . 1 Scanalyzers 3 | . . 1 . . . 1 . . . 1 Garrison Access 4 | . . . . 2 . . . 1 . 1 Total Hacks 121 | . 15 4 7 12 6 23 17 18 2 17 Successful 67 | . 10 4 2 1 4 15 8 11 . 12 Failed 53 | . 4 . 5 11 2 8 9 7 2 5 Catastrophic 7 | . 1 . 1 1 . 1 1 2 . . Database Lockouts 1 | . 1 . . . . . . . . . Manual 68 | . 14 2 7 5 2 9 11 12 . 6 Terminals 84 | . 12 1 7 5 6 14 15 14 2 8 Fabricators 9 | . . . . 2 . 2 . 2 . 3 Repair Stations 8 | . 2 . . 2 . 2 2 . . . Recycling Units 4 | . 1 1 . . . . . . . 2 Scanalyzers 10 | . . 2 . . . 5 . . . 3 Garrison Access 6 | . . . . 3 . . . 2 . 1 Terminal Hacks 31 | . 5 1 1 . 4 6 4 5 . 5 Record 1 | . . . . . . . . . . 1 Robot Analysis 4 | . 2 . . . . . 1 . . 1 Prototype ID Bank 1 | . . . . . . . . 1 . . Open Door 2 | . . . . . 1 . 1 . . . Level Access Points 2 | . . . . . . . . 1 . 1 Emergency Access Points 1 | . . . . . 1 . . . . . Terminal Index 7 | . 1 . 1 . 1 1 1 1 . 1 Garrison Index 1 | . . . . . . 1 . . . . Alert Level 1 | . . . . . . 1 . . . . Unreport Threat 2 | . 1 . . . . 1 . . . . Locate Traps 2 | . 1 . . . . 1 . . . . Patrol Status 1 | . . . . . . . . 1 . . Recall Reinforcements 1 | . . 1 . . . . . . . . Zone Layout 5 | . . . . . 1 1 1 1 . 1 Fabricator Hacks 6 | . . . . . . 1 . 2 . 3 Network Status 3 | . . . . . . 1 . 1 . 1 Load Schematic 1 | . . . . . . . . . . 1 Build 2 | . . . . . . . . 1 . 1 Repair Station Hacks 6 | . 2 . . . . 2 2 . . . Scan Component 3 | . 1 . . . . 1 1 . . . Repair 3 | . 1 . . . . 1 1 . . . Recycling Unit Hacks . | . . . . . . . . . . . Scanalyzer 8 | . . 2 . . . 4 . . . 2 Insert Component 4 | . . 1 . . . 2 . . . 1 Analyze 4 | . . 1 . . . 2 . . . 1 Garrison Access Hacks 2 | . . . . 1 . . . . . 1 Unlock Access 1 | . . . . 1 . . . . . . Seal Access 1 | . . . . . . . . . . 1 Unauthorized Hacks 14 | . 3 1 1 . . 2 2 4 . 1 Terminals 11 | . 2 . 1 . . 2 2 3 . 1 Assimilate 1 | . . . . . . . . 1 . . Botnet 5 | . 1 . 1 . . 1 1 1 . . Detonate 1 | . . . . . . . . . . 1 Operators 4 | . 1 . . . . 1 1 1 . . Fabricators . | . . . . . . . . . . . Repair Stations . | . . . . . . . . . . . Recycling Units 2 | . 1 1 . . . . . . . . Tunnel 2 | . 1 1 . . . . . . . . Scanalyzers . | . . . . . . . . . . . Garrison Access 1 | . . . . . . . . 1 . . Watchers 1 | . . . . . . . . 1 . . Data Cores Recovered 2 | . . . . . . 1 . 1 . . Used 1 | . . . . . . . . 1 . . Hacking Detections 39 | . 3 1 3 7 2 7 5 4 1 6 Full Trace Events 5 | . . . 1 1 1 1 . . . 1 Feedback Events . | . . . . . . . . . . . Feedback Blocked . | . . . . . . . . . . . Robot Schematics Acquired . | . . . . . . . . . . . Robots Built 3 | . . . . . . . . 3 . . Authchips . | . . . . . . . . . . . Time 67 | . . . . . . . . 67 . . Total Robot Build Rating 12 | . . . . . . . . 12 . . Part Schematics Acquired 3 | . . 1 . . . 1 . . . 1 Parts Built 2 | . . . . . . . . . . 2 Authchips . | . . . . . . . . . . . Time 62 | . . . . . . . . . . 62 Total Part Build Rating 4 | . . . . . . . . . . 4 Parts Repaired 3 | . 1 . . . . 1 1 . . . Time 114 | . 26 . . . . 44 44 . . . Parts Recycled . | . . . . . . . . . . . Recycled Matter . | . . . . . . . . . . . Retrieved Matter . | . . . . . . . . . . . Retrieved Components . | . . . . . . . . . . . Parts Scanalyzed 3 | . . 1 . . . 1 . . . 1 Part Schematics Acquired 3 | . . 1 . . . 1 . . . 1 Parts Damaged . | . . . . . . . . . . . Bothacking | -11 -10 -9 -8 -7 -7 -7 -6 -5 -4 -3 ------------ Run | Scr Mat Mat Mat Fac Gar Fac Fac Fac Fac Res Used RIF Installer 1 | . . . . . 1 . . . . . Robots Hacked 4 | . . . . . . . . 4 . . Non-combat . | . . . . . . . . . . . Combat 4 | . . . . . . . . 4 . . Robot Hacks Applied 5 | . . . . . . . . 5 . . parse_system 1 | . . . . . . . . 1 . . disable_weapons 1 | . . . . . . . . 1 . . reboot_system 1 | . . . . . . . . 1 . . formatsys_high 2 | . . . . . . . . 2 . . Relay Couplers Released 10 | . . . . . 10 . . . . . Machine Destruction 10 | . . . . . 10 . . . . . Attached 4 | . . . . . . . . 3 1 . Fabnet Peak Effective % . | . . . . . . . . . . . Robots Rewired . | . . . . . . . . . . . Allies Hacked 2 | . . . . . . 1 . 1 . . Hacks Repelled . | . . . . . . . . . . . Allies | -11 -10 -9 -8 -7 -7 -7 -6 -5 -4 -3 -------- Run | Scr Mat Mat Mat Fac Gar Fac Fac Fac Fac Res Total Allies 10 | . . . . . 4 . . 6 . . Largest Group 4 | . . . . . 2 2 . 4 . . Highest-Rated Group 142 | . . . . . 142 142 . 136 . . Highest-Rated Ally 80 | . . . . . 80 80 . 68 . . Total Orders . | . . . . . . . . . . . Ally Attacks 40 | . . . . . 3 29 . 8 . . Total Damage 2164 | . . . . . 106 1650 . 408 . . Kills 16 | . . . . . 1 13 . 2 . . Allies Corrupted 1 | . . . . . . . . 1 . . Allies Melted . | . . . . . . . . . . . Intel | -11 -10 -9 -8 -7 -7 -7 -6 -5 -4 -3 ------- Run | Scr Mat Mat Mat Fac Gar Fac Fac Fac Fac Res Robot Analysis Total 4 | . 2 . . . . . 1 . . 1 Derelict Logs Recovered . | . . . . . . . . . . . Drone Launches . | . . . . . . . . . . . Drone Recoveries . | . . . . . . . . . . . Exploration | -11 -10 -9 -8 -7 -7 -7 -6 -5 -4 -3 ------------- Run | Scr Mat Mat Mat Fac Gar Fac Fac Fac Fac Res Turns Passed 9108 | 37 440 441 998 1060 722 1066 940 1059 716 1629 Spaces Moved 4597 | 32 348 277 448 570 337 583 477 450 204 871 Core 147 | 1 . . . . . . . 6 31 109 Treads 2956 | . . . 184 570 337 583 477 364 142 299 Legs 146 | . . . . . . . . 80 . 66 Wheels 951 | 31 348 277 264 . . . . . 31 . Hover 397 | . . . . . . . . . . 397 Flight . | . . . . . . . . . . . Fastest Speed 48 | 50 90 100 115 160 160 160 160 160 155 48 Average Speed 154 | 90 90 109 179 160 160 163 160 185 306 116 Slowest Speed 1100 | 100 100 115 320 160 160 240 160 550 800 1100 Overloaded Moves . | . . . . . . . . . . . Propulsion Burnouts . | . . . . . . . . . . . Robots Hopped . | . . . . . . . . . . . Cave-ins Triggered . | . . . . . . . . . . . Exploration Rate (%) 25 | 3 64 24 39 16 53 16 20 11 8 21 Regions Visited 10 Branch Regions . Pre-discovered Areas 2 | . 1 1 . . . . . . . . Known Exits Taken 2 | . . . . 1 . . . 1 . . Unknown Exits Taken 7 | 1 1 1 1 . . 1 1 . 1 . Scrap Searched . | . . . . . . . . . . . Spaces Dug 42 | . . . . 1 2 2 6 9 . 22 Terrain Destroyed 153 | . 26 . . 1 6 7 60 17 5 31 Melee 25 | . . . . 1 2 2 6 1 . 13 Projectile 28 | . . . . . . 5 . . 5 18 AOE 100 | . 26 . . . 4 . 54 16 . . Terrain Rammed . | . . . . . . . . . . . Walls Destroyed . | . . . . . . . . . . . Machines Disabled . | . . . . . . . . . . . Actions | -11 -10 -9 -8 -7 -7 -7 -6 -5 -4 -3 --------- Run | Scr Mat Mat Mat Fac Gar Fac Fac Fac Fac Res Total 5898 | 37 412 347 559 653 445 668 605 584 259 1329 Wait 541 | . 16 6 24 15 15 49 62 23 17 314 Move 4587 | 31 347 276 447 570 335 582 476 449 203 871 Hop . | . . . . . . . . . . . Pick Up 55 | . 6 6 7 4 14 2 . 6 4 6 Fast Attach 83 | 6 3 11 10 3 1 2 9 6 9 23 Attach 54 | . 2 2 4 8 7 3 3 10 4 11 Detach 15 | . . 1 2 . 3 1 5 . . 3 Swap 44 | . 3 1 9 5 . 7 4 8 5 2 Drop 79 | . 3 4 12 11 9 6 10 10 2 12 Fire 263 | . 32 39 44 25 4 10 14 40 14 41 Melee 155 | . . . . 12 57 3 22 20 . 41 Ram 8 | . . 1 . . . . . 2 . 5 Kick 7 | . . . . . . . . 7 . . Crush 5 | . . . . . . 3 . 1 1 . Escape Stasis . | . . . . . . . . . . . Rewire 2 | . . . . . . . . 2 . . Trap . | . . . . . . . . . . . Miscellaneous . | . . . . . . . . . . . Route ------- -11/Scrapyard -10/Materials (discovered 4 exits: *Mat x2 / [*Min x2]) -9/Materials -8/Materials (discovered 2 exits: *Fac / [*Sto]) -7/Factory (discovered 2 exits: *Fac / Gar) -7/Garrison -7/Factory -6/Factory (discovered 3 exits: *Fac / [Low] / [*Ext]) -5/Factory (discovered 4 exits: *Fac x4) -4/Factory -3/Research (discovered 3 exits: Res x3) History --------- Turn | Location | Event 11 | -11/Scrapyard | Discovered new exit (range 15) 38 | -11/Scrapyard | Entered Materials 124 | -10/Materials | Central database locked down 129 | -10/Materials | Discovered new exit (range 11) 156 | -10/Materials | Repaired EM Pulse Gun 286 | -10/Materials | Discovered new exit (range 10) 304 | -10/Materials | Build established: Mutant 367 | -10/Materials | Discovered new exit (range 14) 473 | -10/Materials | Discovered new exit (range 7) 476 | -10/Materials | Lost 3 parts (1p2n) 478 | -10/Materials | Entered another Materials area 478 | -9/Materials | Evolved 2 slots: Utility x2 576 | -9/Materials | Lost 3 parts (1p2w) 813 | -9/Materials | Build established: Scavenger-Mutant 826 | -9/Materials | Discovered new exit (range 16) 919 | -9/Materials | Entered another Materials area 919 | -8/Materials | Evolved 2 slots: Utility x2 935 | -8/Materials | Discovered new exit (range 6) 1728 | -8/Materials | Discovered new exit (range 15) 1834 | -8/Materials | Build established: Mutant 1917 | -8/Materials | Entered Factory 1917 | -7/Factory | Evolved 2 slots: Propulsion x1, Utility x1 2243 | -7/Factory | Build established: Scavenger-Mutant 2327 | -7/Factory | Discovered new exit (range 11) 2806 | -7/Factory | Build established: Gladiator 2977 | -7/Factory | Identified exit to Garrison 2977 | -7/Factory | Entered Garrison 3204 | -7/Garrison | Triggered checkpoint 3222 | -7/Garrison | Garrison Relay disabled 3280 | -7/Garrison | Installed Relay Interface Framework 3358 | -7/Garrison | Triggered checkpoint 3358 | -7/Garrison | Triggered checkpoint 3396 | -7/Garrison | Destroyed 7 combat bots 3505 | -7/Garrison | Rescued a captive Derelict 3507 | -7/Garrison | Rescued a captive Derelict 3522 | -7/Garrison | Triggered checkpoint 3632 | -7/Garrison | Garrison Relay disabled 3661 | -7/Garrison | Found embedded Infiltrators 3677 | -7/Garrison | Discovered new exit (range 10) 3699 | -7/Garrison | Entered Factory 3699 | -7/Factory | Accompanied by 2 allies 4118 | -7/Factory | Discovered new exit (range 14) 4534 | -7/Factory | Repaired Microactuators 4765 | -7/Factory | Entered another Factory area 4765 | -6/Factory | Evolved 2 slots: Propulsion x1, Utility x1 4778 | -6/Factory | Discovered new exit (range 12) 4912 | -6/Factory | Build established: Mutant 4927 | -6/Factory | Repaired Greatsword 5239 | -6/Factory | Build established: Gladiator 5310 | -6/Factory | Discovered new exit (range 10) 5674 | -6/Factory | Discovered new exit (range 18) 5705 | -6/Factory | Entered another Factory area 5705 | -5/Factory | Evolved 2 slots: Utility x2 5740 | -5/Factory | Identified exit to Factory 6036 | -5/Factory | Build established: Hacker-Gladiator 6278 | -5/Factory | Fabricated L-41 Fighter? 6570 | -5/Factory | Lost 10 parts (1p2n7u) 6758 | -5/Factory | Core integrity fell below 50% 6764 | -5/Factory | Entered another Factory area 6764 | -4/Factory | Evolved 2 slots: Utility x1, Weapon x1 6788 | -4/Factory | Lost 4 parts (1n2u1w) 6807 | -4/Factory | Build established: Hacker-Mutant 7322 | -4/Factory | Build established: Scavenger-Tank 7471 | -4/Factory | Discovered new exit (range 6) 7480 | -4/Factory | Entered Research 7480 | -3/Research | Evolved 2 slots: Propulsion x1, Utility x1 7495 | -3/Research | Identified exit to Research 7747 | -3/Research | Fabricated Imp. Treads? 8514 | -3/Research | Lost 5 parts (2n3u) 8566 | -3/Research | Spotted B-86 Titan 8624 | -3/Research | Lost 3 parts (1n2u) 8731 | -3/Research | Build established: Scavenger-Mutant 8827 | -3/Research | Lost 7 parts (1p4n2w) 9011 | -3/Research | Lost 5 parts (1p1n1u2w) 9051 | -3/Research | Released all parts (11) 9058 | -3/Research | Core integrity fell below 50% 9062 | -3/Research | Lost 3 parts (1p1n1w) 9107 | -3/Research | Core integrity fell below 20% 9109 | -3/Research | Destroyed by G-67 Veteran with Plasma Rifle Last Messages --------------- 09076_ A bubble of electromagnetic force engulfs the area. 09076_ Tesla Bomb Trap short circuited. 09076_ A bubble of electromagnetic force engulfs the area. 09076_ K-01 Serf destroyed. 09076_ W-44 Eye destroyed. 09078_ K-01 Serf collects debris. 09081_ U-05 Engineer lays Concrete. 09082_ K-01 Serf collects debris. 09101_ L-61 Swordsman suffers critical hit (Burn). 09105_ ALERT: Rogue bot located, Programmers report to Research Zone 6N. 09105_ Slammed into G-67 Veteran. 09106_ Slug penetrates Wall. 09106_ Slammed into G-67 Veteran. 09108_ Penetrated by Slug. 09108_ Slug penetrates Wall. 09108_ Slug penetrates G-67 Veteran. 09108_ Slug penetrates Wall. 09109_ Slammed into G-67 Veteran. 09109_ Critical hit (Burn: +50). Map ----- +----------------------------------------------------+ | ?????????????????????????????????????????????????? | | ?????????????????????????????????????????????????? | | ?????????????????????????????????????????????????? | | ?????????????????????????????????????????????????? | | ?????????????????????????????????????????????????? | | ?????????????????????????????????????????????????? | | ?????????????????????????????????????????????????? | | ?????????????????????????????????????????????????? | | ?????????????????????????????????????????????????? | | ?????????????????????????????????????????????????? | | ???????????????????????????????????????????####### | | ???????????????????????????????????????????# | | ???????????????????????????????????????????# | | ???????????????????????????????????????????# | | ??????????????????????????#######?????###### | | ??????????????????????????# [ ?????# # ! ! | | ??????????????????????????# ? ???# # | | ??????????????????????????# "" #??# # ! | | ??????????????????????????# "" #??# + | | ??????????????????????????# T" #??# # | | ??????????????????????????# "" #??# ####### | | ??????????????????????????# "" ???# #?????? | | ??????????????????????????# ?????# #?????? | | ??????????????????????????# ???????# #?????? | | ?????????????????####+######/########## #?????? | | ??????????######## g@ lg #?????? | | ?????????? k hgbggg #?????? | | ????????#+######## h g gg +?????? | | ????????# ?# g #?????? | | ????????# ?# ############## T# #?????? | | ????????# "" # #????????????#### #?????? | | ????????# "" # #???????????????# #?????? | | ????????# T" + /???????????????# #?????? | | ????????# "" # #???????????????# #?????? | | ????????# "" # #???????????????# #?????? | | ????????# ?# #???????????????? #?????? | | ????????# ?# #???????????????? #?????? | | ?????#############%! #???????????????? #?????? | | ?????# #* ############????? #?????? | | ?????# # ???? ??????? | | ?????# """"" # % ????? ????????? | | ?????# """"" # ??????????????? | | ?????# "" F" # * ??????????????? | | ?????# # !/############???????????????? | | ?????# # =/%#??????????????????????????? | | ?????###+#####+### !!/#??????????????????????????? | | ???????# ## =#??????????????????????????? | | ???????# ## # ?????????????????????????? | | ???????# ## + "???????????????????????? | | ???????# ## ! T # S ????????????????????? | +----------------------------------------------------+ Best States ------------- Heat Dissipation 65 Energy Generation 21 Energy Capacity 515 Matter Stores 300 Matter Capacity 300 Sight Range 20 Robot Scan Range 16 Terrain Scan Range 16 Terrain Scan Density 410 Base Temperature (-) 100 Corruption Containment 8 Corruption Block 15 Armor Coverage 825 Resistance: KI 40 Resistance: TH 20 Resistance: EX 20 Resistance: EM 20 Resistance: I 20 Resistance: S 20 Resistance: P 20 Core Shielding 20 Weapon Shielding 66 Melee Speed Boost 20 Evasion (%) 55 Melee Accuracy 5 Target Analysis 8 Recoil Reduction 10 Offensive Hacking 20 Relay Coupler Types 2 Relay Coupler Value 60 Item Schematics ----------------- Grenade Launcher | -9/Materials | Scanalyzed Railgun | -7/Factory | Scanalyzed Imp. Treads | -3/Research | Scanalyzed Robot Schematics ------------------ None Fabricated ------------ L-41 Fighter | x3 | -5/Factory | Preloaded Imp. Treads | x2 | -3/Research Alien Tech Used ----------------- None Achievements -------------- Factory Defaults Challenges ------------ None Game ------ Seed TeslaOmegaAirjet Manual? 0 Play Time 02:22:16 Cumulative 275.8 hours Start 2022.11.22 @ 18:59:17 End 2022.11.24 @ 08:02:04 Sessions 10 Manual Loads 0 Difficulty Adventurer Special Mode None Game No. 78 Rogue 0 Adventurer 63 Explorer 15 Win Type - Total 7 Types 6/0/1/0/0/0/0/0/0 Lore% 67 Gallery% 76 Achievement% 64 Wizard Run 0 Options --------- ASCII 0 Keyboard 0 Movement Mouse Keybinds 0 Fullscreen 2 Font 20/Terminus Map View 66x50 Tactical HUD 1 Map Filters NONE Filters NONE Steam 1 RUN: cdbc181e-19f0-4f9e-bd7f-26feafb5aec4